Cogmind - Beta 10.2 @@@ ROGUE MODE // 2020.12.19 @ 10:22:15 Player: Demise Result: Destroyed by 1C-UTU with 1C-UTU's Sword "Lootmaker" Performance ------------- Evolutions (1) 500 Regions Visited (6) 1200 Robots Destroyed (134) 670 Value Destroyed (2810) 2810 Prototype IDs (36) 720 Alien Tech Used (0) 0 Bonus (478) 478 TOTAL SCORE: 6378 Bonus ------- High Alert Combat Kills 178 Aligned with FarCom 300 Cogmind --------- Core Integrity 0/400 Matter 189/300 Energy 310/310 System Corruption 0% Temperature Cool (2) Movement Treading (280) Ox6 Location -8/Mines Parts ------- > --- POWER (1) -------- Reinforced Fission Core > --- PROPULSION (2) --- Light Treads > --- UTILITY (4) ------ High-capacity Storage Unit High-capacity Storage Unit High-capacity Storage Unit Core Shielding > --- WEAPON (2) ------- Improved Assault Rifle 8R-AWN's Boregun > --- INVENTORY (28) --- Makeshift Power Source Advanced Myomer Leg Experimental Heat Sink High-capacity Storage Unit High-capacity Matter Pod (200) High-capacity Matter Pod (200) Gravity Neutralizing Apparatus Modified TNC Advanced Transmission Jammer 8R-AWN's Armor/EX EX Chip 1 EX Chip 1 EX Chip 2 EX Chip 2 Army-in-a-Box (30/30) Improved Assault Rifle Missile Launcher Mining Laser Deploy-a-Sentry Peak State ------------ > --- POWER ------------ Reinforced Fission Core > --- PROPULSION ------- Light Treads Improved Treads > --- UTILITY ---------- High-capacity Storage Unit High-capacity Storage Unit High-capacity Storage Unit High-capacity Storage Unit > --- WEAPON ----------- 8R-AWN's Boregun 8R-AWN's Boregun > --- INVENTORY -------- Makeshift Power Source Advanced Myomer Leg Advanced Myomer Leg Experimental Heat Sink High-capacity Storage Unit High-capacity Storage Unit High-capacity Matter Pod High-capacity Matter Pod Gravity Neutralizing Apparatus Gravity Neutralizing Apparatus Modified TNC Advanced Weapon Cycler Advanced Transmission Jammer Core Shielding Medium Armor Plating 8R-AWN's Armor/EX EX Chip 1 EX Chip 2 Army-in-a-Box Improved EM Shotgun Assault Rifle Assault Rifle Heavy Assault Rifle Heavy Assault Rifle Heavy Assault Rifle Improved Assault Rifle Improved Assault Rifle Missile Launcher Mining Laser Deploy-a-Sentry [Rating: 50] Favorites ----------- Power Improved Ion Engine Engine Improved Ion Engine Power Core Reinforced Fission Core Propulsion Improved Treads Treads Improved Treads Leg Advanced Myomer Leg Wheel Wheel Hover Unit Improved Hover Unit Utility High-capacity Storage Unit Device Experimental Heat Sink Storage High-capacity Storage Unit Processor Salvage Targeting Computer Hackware Hacking Suite Protection Medium Armor Plating Weapon Autogun Energy Gun Improved EM Shotgun Energy Cannon Beam Cannon Ballistic Gun Autogun Ballistic Cannon Flak Cannon Launcher Missile Launcher Special Weapon Mining Laser Build | -11 -10 -10 -9 -9 -9 -8 ------- Run | Scr Mat Min Mat Min Exi Min Slots Evolved 2 | . . . 2 . . . Power . | . . . . . . . Propulsion . | . . . . . . . Utility 2 | . . . 2 . . . Weapon . | . . . . . . . Parts Attached 137 | 7 28 4 51 4 35 8 Power 14 | 1 3 2 7 . 1 . Engine 12 | 1 3 2 6 . . . Core 2 | . . . 1 . 1 . Reactor . | . . . . . . . Propulsion 27 | 2 6 1 11 . 6 1 Treads 20 | . 4 1 10 . 4 1 Leg 2 | . . . . . 2 . Wheel 3 | 2 . . 1 . . . Hover 2 | . 2 . . . . . Flight . | . . . . . . . Utility 31 | 2 6 . 4 . 18 1 Device 5 | . . . . . 5 . Storage 13 | 2 6 . . . 5 . Processor 2 | . . . 1 . 1 . Hackware 1 | . . . 1 . . . Protection 10 | . . . 2 . 7 1 Artifact . | . . . . . . . Weapon 65 | 2 13 1 29 4 10 6 Energy Gun 19 | . 2 1 13 . 2 1 Energy Cannon 2 | . 2 . . . . . Ballistic Gun 31 | 2 7 . 9 2 6 5 Ballistic Cannon 1 | . . . 1 . . . Launcher 6 | . . . 2 2 2 . Special Weapon 6 | . 2 . 4 . . . Impact Weapon . | . . . . . . . Slashing Weapon . | . . . . . . . Piercing Weapon . | . . . . . . . Special Melee Weapon . | . . . . . . . Unidentified Prototypes 10 | . . . 2 . 8 . Parts Lost 15 | . 5 1 3 . 4 2 Power . | . . . . . . . Propulsion 5 | . 3 . . . 1 1 Utility 2 | . . . . . 2 . Weapon 8 | . 2 1 3 . 1 1 Highest Loss Streak 3 | . 3 1 2 . 2 2 Average Slot Usage (%) 99 | . 99 99 99 100 99 100 Engine 9 | . 14 14 10 11 4 . Core 2 | . . . . . 6 11 Treads 22 | . 19 28 21 22 21 22 Storage 23 | . 28 28 22 22 20 42 Processor 8 | . . . 11 11 10 . Hackware 2 | . . . 7 . . . Protection 6 | . . . 3 11 11 1 Energy Gun 9 | . 2 27 11 11 5 . Ballistic Gun 11 | . 20 . 9 10 13 22 Naked Turns . | . . . . . . . Heaviest Build 161 | 16 75 79 87 87 161 161 Greatest Support 70 | 26 40 40 46 46 70 43 Greatest Overweight (x) 32 | . 8 1 6 1 32 3 Average Overweight (x) 1 | . . 1 1 1 1 3 Largest Inventory Capacity 36 | 8 20 20 20 20 36 36 Average Capacity 19 | 7 17 20 20 20 18 35 Most Carried 36 | 8 20 20 20 20 36 36 Average Carried 18 | 5 15 19 19 20 16 35 Final Capacity 36 | 8 20 20 20 20 36 28 Final Carried 36 | 8 20 19 20 20 36 25 Class Distribution -------------------- 76% | Hauler-Mutant 22% | Mutant Dominant Class ---------------- Hauler-Mutant | -10/Materials Hauler-Mutant | -10/Mines Hauler-Mutant | -9/Materials Hauler-Mutant | -9/Mines Hauler-Mutant | -9/Exiles Hauler-Mutant | -8/Mines Resources | -11 -10 -10 -9 -9 -9 -8 ----------- Run | Scr Mat Min Mat Min Exi Min Matter Collected 2759 | 458 580 40 798 190 599 94 Remotely . | . . . . . . . Salvage Created 4656 | 231 1215 252 1907 352 579 120 Parts 352 | 24 75 13 128 25 83 4 Haulers Intercepted 7 | . 2 . 5 . . . Recyclers Shooed . | . . . . . . . Parts Field Recycled . | . . . . . . . Retrieved Matter . | . . . . . . . Parts Self-Destructed . | . . . . . . . Prevented . | . . . . . . . Kills | -11 -10 -10 -9 -9 -9 -8 ------- Run | Scr Mat Min Mat Min Exi Min Combat Hostiles Destroyed 93 | . 23 12 35 16 5 2 Guns 71 | . 22 11 25 10 1 2 Cannons 1 | . 1 . . . . . AOE 17 | . . . 8 6 3 . Classes Destroyed 15 | 3 5 2 2 1 2 . Worker 7 | 2 1 3 1 . . . Builder 2 | . . 1 1 . . . Tunneler 6 | 5 . . . 1 . . Hauler 7 | . 2 . 5 . . . Recycler 5 | 1 3 . . 1 . . Operator 6 | . 2 . 4 . . . Turret 1 | . . . . . 1 . Watcher 8 | . 3 . 5 . . . Swarmer 30 | . 6 3 7 14 . . Grunt 38 | . 17 2 17 1 . 1 Brawler 2 | . . . 1 . . 1 Duelist 1 | . . . . 1 . . Sentry 10 | . . . 10 . . . Zionite 8 | . . . . . 8 . Assembled 11 | . . 7 . . 4 . Best Kill Streak 7 | 4 7 6 5 4 3 2 Combat Bots Only 6 | . 4 6 5 4 3 2 Max Kills in Single Turn 3 | 1 1 1 3 3 2 1 Gunslinging 1 | . . . 1 1 . . Exploded 3 | . . . 3 3 2 . Melee . | . . . . . . . Uniques/NPCs Destroyed 4 | . . . . . 4 . EX-BIN (-9/Exiles) EX-DEC (-9/Exiles) EX-HEX (-9/Exiles) 8R-AWN (-9/Exiles) Combat | -11 -10 -10 -9 -9 -9 -8 -------- Run | Scr Mat Min Mat Min Exi Min Damage Taken 3931 | . 838 348 1323 325 288 809 Core 649 | . 153 83 189 32 . 192 Absorbed by Shields . | . . . . . . . Core Remaining (%) 52 | 100 . 5 . . . . Volleys Fired 699 | 27 115 43 120 24 358 12 Largest 2 | 2 2 2 2 2 2 2 Hottest 120 | 40 120 90 100 68 59 60 Shots Fired 997 | 54 203 84 213 42 378 23 Gun 926 | 54 160 84 199 36 370 23 Cannon 32 | . 28 . 4 . . . Launcher 18 | . . . 4 6 8 . Special 21 | . 15 . 6 . . . Kinetic 358 | 54 144 . 79 18 40 23 Thermal 49 | . 43 . 6 . . . Explosive 18 | . . . 4 6 8 . Electromagnetic 572 | . 16 84 124 18 330 . Robot Hit Streak 34 | 6 18 6 15 8 34 16 Robot Miss Streak 6 | 2 6 4 3 5 4 3 Penetration Max 1 | . . . . . . 1 Secondary Targets 10 | . 3 1 3 2 1 . Max Gunslinging Chain 1 | . 1 1 1 1 1 . Shots Hit Robots 734 | 34 137 37 144 27 339 16 Core Hits 320 | 13 58 18 70 21 135 5 Critical Hits 17 | . 1 . 2 1 8 5 Critical Kills 2 | . . . . . 1 1 Critical Parts Destroyed 10 | . 1 . 2 1 2 4 Melee Attacks . | . . . . . . . Impact . | . . . . . . . Slashing . | . . . . . . . Piercing . | . . . . . . . Sneak Attacks . | . . . . . . . Combat Hostiles . | . . . . . . . Follow-up Attacks . | . . . . . . . Damage Inflicted 8630 | 336 1502 865 3101 984 1524 318 Guns 5939 | 336 1135 537 2288 388 937 318 Cannons 430 | . 366 . 64 . . . Explosions 2260 | . . 328 749 596 587 . Melee . | . . . . . . . Ramming 1 | . 1 . . . . . Kinetic 3059 | 336 919 . 941 143 402 318 Thermal 1457 | . 366 328 495 75 193 . Explosive 1166 | . . . 254 521 391 . Electromagnetic 2947 | . 216 537 1411 245 538 . Impact . | . . . . . . . Slashing . | . . . . . . . Piercing . | . . . . . . . Highest Corruption . | . . . . . . . Average Corruption . | . . . . . . . Corruption Purged . | . . . . . . . Overload Shots . | . . . . . . . Overflow Damage 77 | . . 3 . 26 48 . Projectiles . | . . . . . . . Explosions 77 | . . 3 . 26 48 . Melee . | . . . . . . . Knockbacks . | . . . . . . . Impact . | . . . . . . . Kinetic . | . . . . . . . Secondary . | . . . . . . . Self-Inflicted Damage 294 | . . 68 71 76 79 . Shots 9 | . . 2 2 2 3 . Rammed 1 | . 1 . . . . . Targets Rammed 1 | . 1 . . . . . Kicked . | . . . . . . . Crushed . | . . . . . . . Highest Temperature 314 | . 314 290 301 111 306 228 Average Temperature 91 | . 71 97 59 49 105 92 Received Heat Transfer 1019 | . 360 107 402 6 . 144 Effects 10 | . . 2 1 . 7 . Energy Bleed 5 | . . 2 1 . 2 . Interference 5 | . . . . . 5 . Siege Activations . | . . . . . . . Robots Corrupted 6 | . . 1 3 . 2 . Combat Hostiles 4 | . . 1 2 . 1 . Parts Fried 23 | . 2 1 12 . 8 . Impact Corruptions . | . . . . . . . Robots Melted . | . . . . . . . Combat Hostiles . | . . . . . . . Parts Melted 5 | . 2 . 2 . 1 . Heat Transferred 2094 | . 777 450 617 50 200 . Parts Sabotaged . | . . . . . . . Parts Stolen . | . . . . . . . Parts Stripped . | . . . . . . . Power Chain Reactions 13 | . . 1 6 2 4 . Missiles Intercepted . | . . . . . . . Alert | -11 -10 -10 -9 -9 -9 -8 ------- Run | Scr Mat Min Mat Min Exi Min Peak Influence 718 | 40 286 195 718 592 . 68 Initial 272 | . 26 78 76 272 . . Average 334 | 18 172 78 481 386 . 56 Maximum Alert Level 3 | . 1 . 3 2 . . Low Security (%) 28 | 100 53 100 2 . . 100 Level 1 34 | . 46 . 25 78 . . Level 2 32 | . . . 62 21 . . Level 3 4 | . . . 9 . . . Level 4 . | . . . . . . . Level 5 . | . . . . . . . High Security . | . . . . . . . Max Security . | . . . . . . . Squads Dispatched 13 | . 6 . 7 . . . Investigation 6 | . 4 . 2 . . . Extermination . | . . . . . . . Reinforcement 5 | . 2 . 3 . . . Assault 2 | . . . 2 . . . Garrison . | . . . . . . . Intercept . | . . . . . . . Construction Impeded . | . . . . . . . Haulers Reinforced . | . . . . . . . Stealth | -11 -10 -10 -9 -9 -9 -8 --------- Run | Scr Mat Min Mat Min Exi Min Distress Signals 6 | . 5 . 1 . . . Communications Jammed . | . . . . . . . Distress Signals . | . . . . . . . Times Spotted 150 | . 34 19 54 16 24 3 Peak Tracking Total 10 | . 5 10 8 4 9 3 Tactical Retreats 14 | . 1 6 3 1 2 1 Traps | -11 -10 -10 -9 -9 -9 -8 ------- Run | Scr Mat Min Mat Min Exi Min Traps Triggered 2 | . 1 . 1 . . . Indirectly . | . . . . . . . Trap Hack Attempts . | . . . . . . . Triggered . | . . . . . . . Disarmed . | . . . . . . . Reprogrammed . | . . . . . . . Reused 2 | . . . . . 2 . Traps Extracted . | . . . . . . . Installed 3 | . . . . . 3 . Triggered . | . . . . . . . Exploded 3 | . . . . . 3 . Machines | -11 -10 -10 -9 -9 -9 -8 ---------- Run | Scr Mat Min Mat Min Exi Min Machines Disabled 25 | . 1 10 4 1 9 . Max in Single Turn 9 | . 1 9 1 1 1 . Machines Sabotaged . | . . . . . . . Garrisons Compromised . | . . . . . . . Overloaded Fab Kills . | . . . . . . . Fab Network Shutdowns . | . . . . . . . Hacking | -11 -10 -10 -9 -9 -9 -8 --------- Run | Scr Mat Min Mat Min Exi Min Machines Accessed 23 | . 8 . 13 . 2 . Terminals 14 | . 6 . 8 . . . Fabricators . | . . . . . . . Repair Stations 1 | . . . 1 . . . Recycling Units 4 | . 2 . 2 . . . Scanalyzers 2 | . . . 2 . . . Garrison Access . | . . . . . . . Total Hacks 67 | . 30 . 35 . 2 . Successful 52 | . 22 . 28 . 2 . Failed 14 | . 7 . 7 . . . Catastrophic . | . . . . . . . Database Lockouts 1 | . 1 . . . . . Manual 40 | . 23 . 16 . 1 . Terminals 45 | . 23 . 22 . . . Fabricators . | . . . . . . . Repair Stations 4 | . . . 4 . . . Recycling Units 11 | . 7 . 4 . . . Scanalyzers 5 | . . . 5 . . . Garrison Access . | . . . . . . . Terminal Hacks 19 | . 7 . 10 . 2 . Record 2 | . 1 . . . 1 . Part Schematic 2 | . 1 . 1 . . . Robot Analysis 6 | . 4 . 2 . . . Prototype ID Bank 1 | . 1 . . . . . Branch Access Points 1 | . . . 1 . . . Terminal Index 1 | . . . 1 . . . Locate Traps 2 | . . . 2 . . . Recall Reinforcements 1 | . . . 1 . . . Zone Layout 2 | . . . 2 . . . EX-Prototype ID Bank 1 | . . . . . 1 . Fabricator Hacks . | . . . . . . . Repair Station Hacks 4 | . . . 4 . . . Scan Component 2 | . . . 2 . . . Repair 2 | . . . 2 . . . Recycling Unit Hacks 6 | . 4 . 2 . . . Process 1 | . 1 . . . . . Report Inventory 4 | . 2 . 2 . . . Retrieve Matter 1 | . 1 . . . . . Scanalyzer 5 | . . . 5 . . . Insert Component 3 | . . . 3 . . . Analyze 2 | . . . 2 . . . Garrison Access Hacks . | . . . . . . . Unauthorized Hacks 18 | . 11 . 7 . . . Terminals 14 | . 9 . 5 . . . Track 2 | . 2 . . . . . Assimilate 3 | . 2 . 1 . . . Botnet 7 | . 4 . 3 . . . Operators 2 | . 1 . 1 . . . Fabricators . | . . . . . . . Repair Stations . | . . . . . . . Recycling Units 4 | . 2 . 2 . . . Mask 2 | . . . 2 . . . Tunnel 2 | . 2 . . . . . Scanalyzers . | . . . . . . . Garrison Access . | . . . . . . . Data Cores Recovered 1 | . . . 1 . . . Used 1 | . . . 1 . . . Hacking Detections 16 | . 6 . 10 . . . Full Trace Events 3 | . 1 . 2 . . . Feedback Events . | . . . . . . . Feedback Blocked . | . . . . . . . Robot Schematics Acquired . | . . . . . . . Robots Built . | . . . . . . . Matter . | . . . . . . . Time . | . . . . . . . Total Robot Build Rating . | . . . . . . . Part Schematics Acquired 4 | . 1 . 3 . . . Parts Built . | . . . . . . . Matter . | . . . . . . . Time . | . . . . . . . Total Part Build Rating . | . . . . . . . Parts Repaired 2 | . . . 2 . . . Time 64 | . . . 64 . . . Parts Recycled . | . . . . . . . Recycled Matter 171 | . 171 . . . . . Retrieved Matter 216 | . 216 . . . . . Retrieved Components . | . . . . . . . Parts Scanalyzed 2 | . . . 2 . . . Part Schematics Acquired 2 | . . . 2 . . . Parts Damaged 1 | . . . 1 . . . Bothacking | -11 -10 -10 -9 -9 -9 -8 ------------ Run | Scr Mat Min Mat Min Exi Min Used RIF Installer . | . . . . . . . Robots Hacked . | . . . . . . . Non-combat . | . . . . . . . Combat . | . . . . . . . Robot Hacks Applied . | . . . . . . . Relay Couplers Released . | . . . . . . . Robots Rewired . | . . . . . . . Allies Hacked . | . . . . . . . Hacks Repelled . | . . . . . . . Allies | -11 -10 -10 -9 -9 -9 -8 -------- Run | Scr Mat Min Mat Min Exi Min Total Allies 3 | . 2 1 . . . . Largest Group 2 | . 1 2 . . . . Highest-Rated Group 41 | . 10 41 . . . . Highest-Rated Ally 31 | . 10 31 . . . . Total Orders . | . . . . . . . Ally Attacks 11 | . . 11 . . . . Total Damage 166 | . . 166 . . . . Kills 2 | . . 2 . . . . Allies Corrupted . | . . . . . . . Allies Melted 2 | . . 2 . . . . Intel | -11 -10 -10 -9 -9 -9 -8 ------- Run | Scr Mat Min Mat Min Exi Min Robot Analysis Total 6 | . 4 . 2 . . . Derelict Logs Recovered 4 | . . 2 . 2 . . Drone Launches . | . . . . . . . Drone Recoveries . | . . . . . . . Exploration | -11 -10 -10 -9 -9 -9 -8 ------------- Run | Scr Mat Min Mat Min Exi Min Turns Passed 12140 | 171 1756 956 3672 1260 4231 94 Spaces Moved 5245 | 85 779 431 1711 659 1558 22 Core 2 | 1 . . . . 1 . Treads 4930 | . 552 431 1710 659 1556 22 Legs 1 | . . . . . 1 . Wheels 255 | 84 170 . 1 . . . Hover 57 | . 57 . . . . . Flight . | . . . . . . . Fastest Speed 50 | 50 90 180 150 180 180 220 Average Speed 179 | 89 167 180 180 180 189 220 Slowest Speed 1650 | 90 540 180 220 180 1650 220 Overloaded Moves . | . . . . . . . Propulsion Burnouts . | . . . . . . . Robots Hopped . | . . . . . . . Cave-ins Triggered . | . . . . . . . Exploration Rate (%) 69 | 5 97 92 95 99 89 8 Regions Visited 6 Branch Regions 4 Pre-discovered Areas 6 | . 2 1 . 2 1 . Known Exits Taken 2 | . . 1 1 . . . Unknown Exits Taken 4 | 1 1 . . 1 1 . Scrap Searched 3 | . . 2 . 1 . . Spaces Dug 21 | . 7 . 4 10 . . Terrain Destroyed 246 | . 12 34 72 82 38 8 Melee . | . . . . . . . Projectile 24 | . 12 . 4 . . 8 AOE 222 | . . 34 68 82 38 . Terrain Rammed . | . . . . . . . Walls Destroyed . | . . . . . . . Machines Disabled . | . . . . . . . Actions | -11 -10 -10 -9 -9 -9 -8 --------- Run | Scr Mat Min Mat Min Exi Min Total 7008 | 131 1023 531 2109 692 2478 44 Wait 693 | . 54 43 151 6 439 . Move 5239 | 84 778 430 1710 658 1557 22 Hop . | . . . . . . . Pick Up 111 | 11 28 5 30 . 37 . Fast Attach 40 | 6 6 1 12 . 15 . Attach 31 | 1 4 2 9 . 12 3 Detach 17 | . 2 . 2 . 13 . Swap 66 | . 18 1 30 4 8 5 Drop 108 | 2 17 6 45 . 36 2 Fire 699 | 27 115 43 120 24 358 12 Melee . | . . . . . . . Ram . | . . . . . . . Kick . | . . . . . . . Crush 1 | . 1 . . . . . Escape Stasis . | . . . . . . . Rewire . | . . . . . . . Trap 3 | . . . . . 3 . Miscellaneous . | . . . . . . . Route ------- -11/Scrapyard -10/Materials (discovered 5 exits: *Mat x3 / [*Min x2]) -10/Mines (discovered 2 exits: *Mat x2) -9/Materials (discovered 6 exits: [*Mat x3] / *Min / *Sto x2) -9/Mines (discovered 4 exits: [*Mat x2] / *Exi / [*Zio]) -9/Exiles (discovered 2 exits: [*Min x2]) -8/Mines History --------- Turn | Location | Event 2 | -11/Scrapyard | Met Revision 17 5 | -11/Scrapyard | Discovered new exit (range 15) 172 | -11/Scrapyard | Entered Materials 306 | -10/Materials | Build established: Mutant 420 | -10/Materials | Discovered new exit (range 8) 518 | -10/Materials | Lost 3 parts (2n1w) 1020 | -10/Materials | Core integrity fell below 50% 1041 | -10/Materials | Build established: Hauler-Mutant 1066 | -10/Materials | Discovered new exit (range 5) 1324 | -10/Materials | Discovered new exit (range 15) 1664 | -10/Materials | Discovered new exit (range 8) 1733 | -10/Materials | Discovered new exit (range 15) 1767 | -10/Materials | Central database locked down 1928 | -10/Materials | Entered Mines 1928 | -10/Mines | Accompanied by 1 ally 1936 | -10/Mines | Met a Derelict bent on vengeance 2048 | -10/Mines | Escorted by a lone wolf Derelict 2049 | -10/Mines | Assembled infested the area 2054 | -10/Mines | Assisted by a Guerilla fighting off Assembled 2343 | -10/Mines | Found a hidden stash of uninstalled traps 2387 | -10/Mines | Discovered new exit (range 7) 2726 | -10/Mines | Identified exit to Materials 2770 | -10/Mines | Core integrity fell below 20% 2844 | -10/Mines | Learned location of Storage (-9) 2884 | -10/Mines | Entered Materials 2884 | -9/Materials | Evolved 2 slots: Utility x2 3081 | -9/Materials | Discovered new exit (range 15) 3398 | -9/Materials | Discovered new exit (range 7) 3826 | -9/Materials | Discovered new exit (range 9) 4421 | -9/Materials | Discovered new exit (range 4) 4771 | -9/Materials | Discovered new exit (range 10) 5113 | -9/Materials | Repaired Imp. Treads 5155 | -9/Materials | Identified exit to Mines 5155 | -9/Materials | Identified exit to Storage 5713 | -9/Materials | Repaired Imp. Treads 6084 | -9/Materials | First assault squad dispatched 6556 | -9/Materials | Entered Mines 6692 | -9/Mines | Received a Rocket Launcher from a helpful Derelict 6754 | -9/Mines | Core integrity fell below 50% 6829 | -9/Mines | A Derelict revealed a hidden shortcut to a safe place 6882 | -9/Mines | Discovered new exit (range 6) 6982 | -9/Mines | Learned location of Zion (-7) 7188 | -9/Mines | A weapon hastily lodged in a ceiling crevice suddenly fell to the ground 7329 | -9/Mines | Discovered new exit (range 8) 7482 | -9/Mines | Deemed a non-threat by the Exiles lab entrance 7482 | -9/Mines | Discovered new exit (range 5) 7816 | -9/Mines | Entered Exiles 7861 | -9/Exiles | Met 8R-AWN 7890 | -9/Exiles | Met EX-HEX 8066 | -9/Exiles | Met EX-DEC 8210 | -9/Exiles | Discovered new exit (range 10) 8376 | -9/Exiles | Met EX-BIN 8398 | -9/Exiles | Aligned with FarCom system 8400 | -9/Exiles | Given EX-Vault access code 8443 | -9/Exiles | Opened EX-Vault 8459 | -9/Exiles | Found Army-in-a-Box 8464 | -9/Exiles | Found Modified TNC 8510 | -9/Exiles | Warned to stay clear of 0b10 Research branches 8801 | -9/Exiles | Found AWS/Autocannon 9117 | -9/Exiles | Attacked by the Exiles 9423 | -9/Exiles | Build established: Mutant 9801 | -9/Exiles | Destroyed EX-BIN 9835 | -9/Exiles | Destroyed EX-DEC 9842 | -9/Exiles | Found Prototype Device 9842 | -9/Exiles | Identified System Purifier 10155 | -9/Exiles | Destroyed EX-HEX 11039 | -9/Exiles | Destroyed 8R-AWN 11098 | -9/Exiles | Found Prototype Device 11098 | -9/Exiles | Identified AS-neutralizer No. 17b 11103 | -9/Exiles | Found Prototype Protection 11103 | -9/Exiles | Identified 8R-AWN's Armor/EX 11106 | -9/Exiles | Found Prototype Protection 11106 | -9/Exiles | Identified 8R-AWN's Armor/TH 11289 | -9/Exiles | Found Prototype Ballistic Gun 11292 | -9/Exiles | Found Prototype Ballistic Gun 11361 | -9/Exiles | Build established: Hauler-Mutant 11484 | -9/Exiles | Identified 8R-AWN's Boregun (x2) 11720 | -9/Exiles | Found Deploy-a-Sentry 12021 | -9/Exiles | Discovered new exit (range 14) 12047 | -9/Exiles | Stole three prototypes: Modified TNC, Army-in-a-Box, Deploy-a-Sentry 12047 | -9/Exiles | Entered Mines 12118 | -8/Mines | 1C-UTU came to Exiles' defense 12134 | -8/Mines | Core integrity fell below 20% 12141 | -8/Mines | Destroyed by 1C-UTU with 1C-UTU's Sword "Lootmaker" Last Messages --------------- 12074_ Acquired 34 matter. 12118_ 1C-UTU: "I came as fast as I could... Wait, it was you!" 12122_ HV Slug penetrates Wall. 12125_ HV Slug penetrates 1C-UTU. 12125_ 1C-UTU suffers critical hit. 12125_ Destroyed Prototype Leg. 12125_ HV Slug penetrates 1C-UTU. 12125_ 1C-UTU suffers critical hit. 12125_ Destroyed Prototype Slashing Weapon. 12130_ HV Slug penetrates Wall. 12130_ HV Slug penetrates 1C-UTU. 12130_ HV Slug penetrates Wall. 12132_ 8R-AWN's Boregun severed. 12133_ HV Slug penetrates 1C-UTU. 12133_ HV Slug penetrates Wall. 12135_ Dropped Hcp. Storage Unit. 12137_ Imp. EM Shotgun destroyed. 12139_ HV Slug penetrates 1C-UTU. 12139_ HV Slug penetrates Wall. 12140_ Imp. Treads destroyed. Map ----- +----------------------------------------------------+ | ?????????????????????????????????????????????????? | | ?????????????????????????????????????????????????? | | ?????????????????????????????????????????????????? | | ?????????????????????????????????????????????????? | | ?????????????????????????????????????????????????? | | ?????????????????????????????????????????????????? | | ?????????????????????????????????????????????????? | | ?????????????????????????????????????????????????? | | ?????????????????????????????????????????????????? | | ????????????????????????#????????????????????????? | | ???????????????????????? ????????????????????????? | | ???????????????????????? ????????????????????????? | | ???????????????????????? ????????????????????????? | | ???????????????????????? ????????????????????????? | | ???????????????????????? ????????????????????????? | | ???????????????????????# #???????????????????????? | | ???????????????????????# #???????????? ??????????? | | ???????????????????????# ??????????? ??????????? | | ???????????????????????# #????????? ?????????? | | ???????????????????????# #???????? ?????????? | | ???????????????????????# #??????? ?????????? | | ???????????????????????# #????? ????????? | | ???????????????????##??# #???? #?????????? | | ??????????????????# ####=#### #??????????? | | ???????????????#?# ## !!!l #??????????? | | ??????????????? # #?# [!@![ #???????????? | | ???????????#####"#??# #### ###???????????? | | ???????????# #### #??? ###?????????????? | | ???????????# %!##"" #???? ##???????????????? | | ???????????# =[ #???? ##????????????????? | | ???????????# = #?????###?????????????????? | | ???????????# #######?????????????????????????? | | ???????????#######???????????????????????????????? | | ?????????????????????????????????????????????????? | | | | | | | | | | | | | | | | | | | | | | | | | | | | | | | | | +----------------------------------------------------+ Best States ------------- Heat Dissipation 54 Energy Generation 19 Energy Capacity 310 Matter Stores 300 Matter Capacity 300 Sight Range 16 Terrain Scan Density 10 Additional Mass Support 12 Armor Coverage 800 Resistance: TH 90 Core Shielding 20 Evasion (%) 42 Armor Integrity Analysis 50 Recoil Reduction 2 Salvage Targeting 1 Offensive Hacking 10 Item Schematics ----------------- Hcp. Storage Unit | -10/Materials | Hacked Hcp. Matter Pod | -9/Materials | Scanalyzed Cmb. Airjet | -9/Materials | Scanalyzed Hcp. Battery | -9/Materials | Hacked Robot Schematics ------------------ None Fabricated ------------ Nothing Alien Tech Used ----------------- None Achievements -------------- None Challenges ------------ None Game ------ Seed FluxFissionScrap Manual? 0 Play Time 01:17:16 Cumulative 136.3 hours Start 2020.12.19 @ 08:59:29 End 2020.12.19 @ 10:22:15 Sessions 1 Manual Loads 0 Difficulty Rogue Special Mode None Game No. 123 Rogue 123 Adventurer 0 Explorer 0 Win Type - Total 0 Types 0/0/0/0/0/0/0/0/0 Lore% 53 Gallery% 64 Achievement% 54 Wizard Run 0 Options --------- ASCII 0 Keyboard 1 Movement Numpad Keybinds 0 Fullscreen 1 Font 12/Terminus Map View 83x54 Tactical HUD 1 Map Filters NONE Filters NONE Steam 1 RUN: 900c69e1-3012-4c4d-b3bf-b1f1f98da53d